bitfinex/quotes_ETHUSD_20250324
["timestamp","ask_amount","ask_price","bid_price","bid_amount"]
[1742802526863,9.4627,2078.7,2078.4,1.3577]
[1742802527186,9.4627,2078.7,2078.4,0.55]
[1742802529976,3.0,2079.0,2078.7,4.81056]
[1742802530182,15.04899,2079.1,2078.7,4.81056]
[1742802530379,4.81038,2078.9,2078.7,0.55]
[1742802530584,4.81038,2078.9,2078.6,0.55]
[1742802531386,4.81004,2079.0,2078.6,5.36088]
[1742802531592,9.62024,2079.0,2078.6,5.36088]
[1742802532614,4.81026,2078.9,2078.6,5.36088]
[1742802532815,4.81067,2078.8,2078.5,0.8077]
[1742802535917,4.81067,2078.8,2078.5,0.55]
[1742802536801,4.81028,2078.9,2078.5,5.36107]
[1742802536994,4.8105,2078.8,2078.5,0.55]
[1742802538215,4.81093,2078.6,2078.4,0.55]
[1742802539000,4.81127,2078.5,2078.3,0.55]
[1742802539205,4.81139,2078.4,2078.1,5.63677]
[1742802539405,4.81139,2078.4,2078.1,1.869812]
[1742802539893,5.63102,2078.5,2078.1,6.681872]
[1742802540091,5.63102,2078.5,2078.1,6.681782]
[1742802540288,5.63102,2078.5,2078.1,11.493692]
[1742802540613,5.63102,2078.5,2078.1,6.681732]
[1742802542111,4.81122,2078.5,2078.1,6.681732]
[1742802543612,9.6226,2078.5,2078.1,6.681732]
[1742802543920,4.81142,2078.4,2078.1,0.55]
[1742802544411,5.58252,2078.5,2078.1,5.36208]
[1742802544612,4.81122,2078.5,2078.2,4.81179]
[1742802544787,5.4223,2078.7,2078.3,5.36161]
[1742802544992,10.23303,2078.7,2078.3,5.36161]
[1742802545217,3.0,2078.8,2078.4,4.81116]
[1742802545518,12.46146,2078.8,2078.4,5.61516]
[1742802546217,12.46146,2078.8,2078.5,0.55]
[1742802548301,4.81072,2078.7,2078.5,0.55]
[1742802549618,4.81072,2078.7,2078.4,0.55]
[1742802550234,4.81072,2078.7,2078.4,5.36138]
[1742802550898,4.81072,2078.7,2078.4,0.55]
[1742802551247,4.81101,2078.6,2078.4,0.55]
[1742802551406,5.60751,2078.6,2078.3,0.55]
[1742802551948,4.81101,2078.6,2078.3,0.55]
[1742802552432,4.81101,2078.6,2078.3,5.36159]
[1742802552632,4.81101,2078.6,2078.3,6.457208]
[1742802553131,4.81096,2078.6,2078.1,0.7829]
[1742802553301,4.81124,2078.5,2078.1,5.59494]
[1742802553497,9.62258,2078.5,2078.1,5.59494]
[1742802553730,4.81139,2078.4,2078.1,0.7829]
[1742802553934,4.81139,2078.4,2077.9,6.34915271]
[1742802553935,8.49587298,2078.3,2077.9,0.98662271]
[1742802554131,8.49587298,2078.3,2077.7,5.59573]
[1742802554132,4.81194,2078.2,2077.7,5.59573]
[1742802554428,4.81194,2078.2,2077.9,0.55]
[1742802554604,4.81209,2078.1,2077.9,0.55]
[1742802554806,4.81244,2078.0,2077.8,0.55]
[1742802557535,4.81209,2078.1,2077.8,0.55]
[1742802557735,9.62439,2078.1,2077.8,0.55]
[1742802557933,4.81233,2078.0,2077.9,0.09016715]
[1742802560631,7.86070298,2078.0,2077.9,0.09016715]
[1742802560817,4.8127,2077.9,2077.7,0.55]
[1742802561013,4.8127,2077.9,2077.8,0.09298395]
[1742802561202,4.81286,2077.8,2077.6,0.44786049]
[1742802561402,4.81286,2077.8,2077.7,0.09298395]
[1742802564323,9.62586,2077.8,2077.5,0.7829]
[1742802564856,9.62586,2077.8,2077.6,0.09331268]
[1742802566224,4.81286,2077.8,2077.6,0.09331268]
[1742802566429,9.62582,2077.8,2077.6,0.09331268]
[1742802567264,4.81301,2077.7,2077.6,0.09331268]
[1742802568229,9.62586,2077.8,2077.6,0.09331268]
[1742802569461,4.81286,2077.8,2077.6,0.09331268]
[1742802572068,4.81286,2077.8,2077.6,0.09331268]
[1742802572366,9.62584,2077.8,2077.6,0.09331268]
[1742802572667,4.81286,2077.8,2077.6,0.09331268]
[1742802573179,4.81219,2078.1,2077.8,0.55]
[1742802573390,0.7536,2078.4,2077.9,4.81236]
[1742802573545,4.651,2078.3,2078.0,0.8252]
[1742802573877,9.46279,2078.3,2078.0,1.38026755]
[1742802574168,9.46279,2078.3,2078.1,0.09401718]
[1742802574470,14.27461,2078.3,2078.1,0.09401718]
[1742802574679,4.81185,2078.2,2078.1,0.09401718]
[1742802575553,4.81185,2078.2,2077.8,6.18796]
[1742802575763,4.81185,2078.2,2078.1,0.09401718]
[1742802575958,4.81185,2078.2,2077.9,0.66357128]
[1742802576174,4.81185,2078.2,2078.1,0.09401718]
[1742802576359,9.62351,2078.3,2078.0,0.55]
[1742802576565,4.81172,2078.3,2078.1,0.09401718]
[1742802577076,7.81172,2078.3,2078.2,0.09401718]
[1742802577445,7.81172,2078.3,2078.0,0.55]
[1742802577654,7.81172,2078.3,2078.1,0.09401718]
[1742802578150,3.0,2078.3,2078.1,0.09401718]
[1742802578584,7.81165,2078.3,2078.1,0.09401718]
[1742802580596,4.81144,2078.4,2078.1,0.09401718]
[1742802580884,4.81117,2078.5,2078.2,0.55]
[1742802581051,4.81117,2078.5,2078.2,1.21731499]
[1742802581388,4.81117,2078.5,2078.3,0.09026063]
[1742802581586,4.81139,2078.4,2078.3,0.09026063]
[1742802581776,4.81139,2078.4,2078.2,0.55]
[1742802582158,4.81164,2078.3,2078.1,0.55]
[1742802582359,4.81164,2078.3,2078.1,1.30223842]
[1742802582764,9.6225,2078.5,2078.1,1.30223842]
[1742802583088,4.8115,2078.4,2078.1,1.30223842]
[1742802583265,4.81163,2078.3,2078.1,1.30223842]
[1742802583686,4.81172,2078.3,2078.1,0.75223842]
[1742802585289,4.81172,2078.3,2078.0,0.55]
[1742802585852,4.81139,2078.4,2078.0,0.55]
[1742802586057,4.81139,2078.4,2078.0,5.36222]
[1742802586488,4.81139,2078.4,2078.1,0.09030757]
[1742802587359,4.8112,2078.5,2078.1,4.90238757]
[1742802587598,4.8112,2078.5,2078.2,0.55]
[1742802587839,4.81142,2078.4,2078.1,0.55]
[1742802588023,4.81142,2078.4,2078.2,0.09030757]
[1742802595330,9.62301,2078.4,2078.2,0.09030757]
[1742802595711,4.81142,2078.4,2078.2,0.09030757]
[1742802597334,4.81162,2078.3,2078.2,0.09030757]
[1742802597715,4.81185,2078.2,2078.1,0.44773942]
[1742802599011,4.81185,2078.2,2078.0,0.55]
[1742802600428,9.62389,2078.2,2077.9,0.7693]
[1742802601135,9.62385,2078.2,2077.9,0.7693]
[1742802601434,4.81185,2078.2,2078.0,0.09011982]
[1742802601803,5.63474,2078.3,2078.0,0.09011982]
[1742802602313,10.44656,2078.3,2078.0,0.09011982]
[1742802602636,4.81186,2078.2,2078.0,0.09011982]
[1742802604034,9.67227298,2078.2,2078.0,0.09011982]
[1742802604234,4.81186,2078.2,2078.0,0.09011982]
[1742802605235,9.67227298,2078.2,2078.0,0.09011982]
[1742802605433,9.6239,2078.2,2078.0,0.09011982]
[1742802605934,9.62383,2078.2,2078.0,0.09011982]
[1742802606232,4.81208,2078.1,2078.0,0.09011982]
[1742802606435,9.62436,2078.1,2077.7,6.55215952]
[1742802606642,4.81236,2078.0,2077.8,0.09054232]
[1742802606848,4.81236,2078.0,2077.7,0.55]
[1742802607140,4.81257,2077.9,2077.7,0.55]
[1742802607340,4.81257,2077.9,2077.6,0.94303973]
[1742802609851,4.81281,2077.8,2077.5,5.59297]
[1742802611049,4.81259,2077.9,2077.6,4.81323]
[1742802611229,9.62534,2077.9,2077.5,5.59291]
[1742802611428,9.62524,2077.9,2077.5,5.59291]
[1742802611752,4.81259,2077.9,2077.5,5.59291]
[1742802611919,5.64453,2078.0,2077.6,4.81322]
[1742802612319,5.64453,2078.0,2077.6,5.26189561]
[1742802612618,4.81259,2077.9,2077.6,0.44867561]
[1742802613530,4.81259,2077.9,2077.5,6.7416869]
[1742802614548,4.81259,2077.9,2077.6,4.81323]
[1742802614848,10.45703,2078.0,2077.6,4.81323]
[1742802615048,4.81255,2077.9,2077.5,6.7416869]
[1742802615253,4.81255,2077.9,2077.6,0.85162937]
[1742802615451,4.81255,2077.9,2077.5,5.59283]
[1742802615650,4.81255,2077.9,2077.5,10.40622]
[1742802615949,5.64453,2078.0,2077.6,5.26171489]
[1742802617450,7.649,2078.2,2078.0,4.81231]
[1742802617655,7.649,2078.2,2077.9,4.81246]
[1742802618252,5.64372,2078.4,2077.9,4.81246]
[1742802618253,5.64372,2078.4,2078.0,4.8122]
[1742802618443,7.81163,2078.3,2077.9,10.665379]
[1742802618624,7.81163,2078.3,2077.9,5.852919]
[1742802619629,4.81186,2078.2,2077.9,5.852919]
[1742802619937,7.81163,2078.3,2077.9,0.55]
[1742802620132,7.81163,2078.3,2077.9,5.36246]
[1742802620545,7.81163,2078.3,2077.9,10.17492]
[1742802620771,3.0,2078.3,2077.9,5.36246]
[1742802620977,3.0,2078.3,2078.0,4.81231]
[1742802623056,7.81166,2078.3,2077.9,11.16286165]
[1742802623354,3.0,2078.3,2078.0,4.81229]
[1742802623856,3.0,2078.3,2078.0,4.81218]
[1742802624456,7.81163,2078.3,2077.9,7.54475782]
[1742802625557,7.81163,2078.3,2077.9,6.35052165]
[1742802625729,7.81163,2078.3,2077.9,1.53798165]
[1742802626055,7.81171,2078.3,2077.9,6.35039165]
[1742802627762,4.81193,2078.2,2077.9,1.53798165]
[1742802627955,4.81193,2078.2,2077.9,0.98798165]
[1742802628560,12.62355,2078.3,2077.9,5.80046165]
[1742802628747,7.81171,2078.3,2077.9,5.80046165]
[1742802629455,4.81194,2078.2,2077.9,0.98798165]
[1742802630231,7.81171,2078.3,2077.9,5.80047165]
[1742802630458,7.81171,2078.3,2078.0,4.81229]
[1742802630837,7.81171,2078.3,2077.9,10.61290165]
[1742802631556,4.81185,2078.2,2077.9,6.93965181]
[1742802631761,4.81185,2078.2,2078.0,0.23968059]
[1742802631957,8.63538,2078.1,2078.0,0.23968059]
[1742802632331,4.81279,2077.8,2077.4,0.8047]
[1742802632527,9.45958,2077.9,2077.6,0.23921147]
[1742802632734,4.81282,2077.8,2077.6,0.23921147]
[1742802633464,9.45965,2077.9,2077.6,0.23921147]
[1742802634843,9.45965,2077.9,2077.6,1.18171825]
[1742802635767,14.27243,2077.9,2077.6,1.18171825]
[1742802635967,9.45965,2077.9,2077.6,1.18171825]
[1742802637667,14.27239,2077.9,2077.6,1.18171825]
[1742802638238,4.8128,2077.8,2077.6,1.18171825]
[1742802638539,4.8128,2077.8,2077.6,0.23921147]
[1742802638732,4.81339,2077.6,2077.1,5.63058]
[1742802638938,4.81379,2077.4,2077.2,0.24151034]
[1742802639138,4.81394,2077.3,2077.2,0.24151034]
[1742802639355,5.58074,2077.3,2077.2,0.24151034]
[1742802639572,6.8042793,2077.3,2077.2,0.24151034]
[1742802639742,4.647,2077.4,2076.9,0.8162]
[1742802639938,4.647,2077.4,2077.2,0.8162]
[1742802640134,7.647,2077.4,2077.3,0.24319979]
[1742802640341,7.647,2077.4,2076.8,0.97381093]
[1742802640342,4.81486,2076.9,2076.8,0.97381093]
[1742802640539,4.81486,2076.9,2076.8,0.22567167]
[1742802640774,4.81486,2076.9,2076.6,0.55]
[1742802641261,4.81486,2076.9,2076.7,0.22745193]
[1742802641571,10.2285,2077.0,2076.5,9.63136]
[1742802641768,4.647,2077.0,2076.8,0.22745193]
[1742802641969,4.647,2077.0,2076.7,0.8162]
[1742802642175,9.46163,2077.0,2076.9,0.22763936]
[1742802642774,9.46163,2077.0,2076.7,0.8162]
[1742802642967,9.46163,2077.0,2076.9,0.22763936]
[1742802643473,4.81395,2077.3,2076.9,0.55]
[1742802643675,4.647,2077.1,2076.9,0.55]
[1742802643841,4.648,2077.2,2077.0,0.22763936]
[1742802644044,4.648,2077.2,2076.9,5.36464]
[1742802644250,4.81499,2076.9,2076.3,5.63245]
[1742802644461,9.46322,2076.8,2076.3,6.195695]
[1742802644650,9.46322,2076.8,2076.4,0.55]
[1742802645070,4.648,2076.8,2076.4,0.55]
[1742802645278,4.648,2076.8,2076.4,5.366]
[1742802645672,9.4631,2076.8,2076.4,5.366]
[1742802645868,4.648,2076.8,2076.6,0.55]
[1742802646075,4.648,2076.8,2076.5,0.55]
[1742802646347,9.46318,2076.8,2076.5,0.55]
[1742802646552,9.46318,2076.8,2076.6,0.22829543]
[1742802646981,9.46318,2076.8,2076.5,0.55]
[1742802647382,9.46318,2076.8,2076.6,0.22829543]
[1742802647686,9.46318,2076.8,2076.5,0.55]
[1742802648063,9.46318,2076.8,2076.6,0.22829543]
[1742802648383,9.46318,2076.8,2076.5,0.55]
[1742802648587,4.81535,2076.7,2076.5,0.55]
[1742802648754,4.81535,2076.7,2076.6,0.22829543]
[1742802649666,14.27839,2076.8,2076.6,0.22829543]
[1742802650217,4.81533,2076.7,2076.6,0.22829543]
[1742802651760,7.06572298,2076.7,2076.6,0.11209121]
[1742802652075,10.01735,2076.7,2076.6,0.20411552]
[1742802652256,3.0,2076.5,2075.9,0.8204]
[1742802652458,4.81643,2076.3,2075.9,0.8204]
[1742802652663,4.81643,2076.3,2076.0,0.20406874]
[1742802652664,4.8165,2076.2,2076.0,0.20406874]
[1742802652889,4.81672,2076.1,2076.0,0.20406874]
[1742802653788,4.81672,2076.1,2075.8,0.55]
[1742802653955,4.81672,2076.1,2076.0,0.20701671]
[1742802654161,4.81672,2076.1,2075.8,0.55]
[1742802654378,4.81672,2076.1,2076.0,0.20701671]
[1742802654692,9.63365,2076.1,2076.0,0.20701671]
[1742802654887,4.81672,2076.1,2076.0,0.20701671]
[1742802655091,4.81672,2076.1,2075.8,0.55]
[1742802655261,4.81672,2076.1,2076.0,0.20701671]
[1742802655462,9.63365,2076.1,2075.8,0.55]
[1742802655799,4.81697,2076.0,2075.8,0.55]
[1742802656093,4.81697,2076.0,2075.9,0.20701671]
[1742802657393,4.81697,2076.0,2075.7,0.8204]
[1742802657594,4.81697,2076.0,2075.9,0.20701671]
[1742802657795,4.81697,2076.0,2075.7,0.8204]
[1742802658087,4.81697,2076.0,2075.9,0.20701671]
[1742802658288,4.81697,2076.0,2075.7,0.8204]
[1742802658494,4.81697,2076.0,2075.9,0.20701671]
[1742802658791,4.81697,2076.0,2075.7,0.8204]
[1742802658997,4.81764,2075.8,2075.0,5.63958]
[1742802659162,4.81849,2075.4,2075.0,10.45869]
[1742802659363,4.81845,2075.4,2075.1,0.76197788]
[1742802659594,4.81845,2075.4,2075.1,0.21197788]
[1742802660374,4.81858,2075.3,2075.2,0.94915515]
[1742802660590,4.81858,2075.3,2075.2,0.55]
[1742802660795,4.81858,2075.3,2075.2,0.76389737]
[1742802662066,9.47045,2075.4,2075.2,0.76389737]
[1742802662267,9.47044,2075.4,2075.2,0.76389737]
[1742802662598,9.47045,2075.4,2075.2,0.76389737]
[1742802662988,4.81845,2075.4,2075.2,0.76389737]
[1742802663177,9.46945,2075.4,2075.2,0.76389737]
[1742802663798,0.7742,2075.5,2075.2,5.59750192]
[1742802663997,9.46938,2075.4,2075.2,0.77877192]
[1742802664197,9.46936,2075.4,2075.2,0.77877192]
[1742802665995,4.651,2075.4,2075.2,0.77877192]
[1742802666164,0.7742,2075.5,2075.2,0.77877192]
[1742802666368,4.651,2075.4,2075.2,0.77877192]
[1742802666795,9.46927,2075.5,2075.2,0.77877192]
[1742802666997,0.8206,2075.9,2075.3,0.55]
[1742802667205,4.651,2075.6,2075.3,6.14439]
[1742802667373,4.651,2075.6,2075.4,0.21741059]
[1742802667900,4.652,2075.8,2075.5,0.55]
[1742802668092,4.652,2075.8,2075.5,5.36795]
[1742802668600,10.28941,2076.1,2075.7,5.36743]
[1742802668799,9.46881,2076.1,2075.7,5.36743]
[1742802669005,9.46881,2076.1,2075.8,0.21839372]
[1742802669406,9.46881,2076.1,2075.7,5.36743]
[1742802669617,9.46881,2076.1,2075.9,0.21839372]
[1742802669904,9.46881,2076.1,2075.7,5.36743]
[1742802670102,9.46881,2076.1,2075.7,11.390632]
[1742802670271,4.81664,2076.2,2075.8,5.03575372]
[1742802670470,14.28528,2076.2,2075.8,5.03575372]
[1742802670880,4.81674,2076.1,2075.8,5.03575372]
[1742802671586,4.81674,2076.1,2075.8,0.21839372]
[1742802672086,4.81674,2076.1,2075.7,7.55646847]
[1742802672287,4.81674,2076.1,2075.9,0.21839372]
[1742802672482,4.81674,2076.1,2075.7,7.55646847]
[1742802672686,9.4685,2076.2,2075.8,4.81732]
[1742802672887,9.4685,2076.2,2075.8,5.03571372]
[1742802673099,4.81673,2076.1,2075.8,0.21839372]
[1742802673407,4.81673,2076.1,2075.7,7.55646847]
[1742802673608,4.81673,2076.1,2075.9,0.21839372]
[1742802673779,4.81673,2076.1,2075.7,7.55646847]
[1742802673976,4.81673,2076.1,2075.8,0.21839372]
[1742802674177,4.81673,2076.1,2075.7,7.55646847]
[1742802674401,4.81673,2076.1,2075.8,0.21839372]
[1742802674778,4.81673,2076.1,2075.7,7.55646847]
[1742802675007,4.81673,2076.1,2075.8,0.21839372]
[1742802675507,9.46853,2076.2,2075.8,5.03580372]
[1742802675681,9.46853,2076.2,2075.8,4.81741]
[1742802675881,9.46853,2076.2,2075.9,0.21839372]
[1742802676306,4.81626,2076.3,2075.9,5.81132372]
[1742802676610,4.8165,2076.2,2075.9,5.81132372]
[1742802677114,9.46726,2076.3,2075.9,5.81132372]
[1742802677406,9.46726,2076.3,2076.0,5.36687]
[1742802677975,9.46726,2076.3,2076.1,0.21839372]
[1742802679578,4.651,2076.3,2076.1,0.21839372]
[1742802679784,9.46679,2076.5,2076.1,5.03495372]
[1742802680297,9.46656,2076.6,2076.2,0.55]
[1742802680483,4.8158,2076.5,2076.2,0.55]
[1742802680682,4.8158,2076.5,2076.3,0.19615541]
[1742802681031,4.86417298,2076.5,2076.2,0.55]
[1742802681182,4.8158,2076.5,2076.4,0.19615541]
[1742802681382,4.8158,2076.5,2076.2,1.52960404]
[1742802681629,0.04837298,2076.4,2076.3,0.19615541]
[1742802681932,8.66320298,2076.4,2076.3,0.19615541]
[1742802682143,4.81704,2076.0,2075.7,0.55]
[1742802682446,4.81704,2076.0,2075.8,0.195875]
[1742802682832,4.81704,2076.0,2075.7,0.55]
[1742802683005,4.81704,2076.0,2075.9,0.195875]
[1742802683225,5.59073,2076.1,2075.8,0.19620215]
[1742802683429,5.59073,2076.1,2075.7,5.36763]
[1742802683612,4.81696,2076.0,2075.9,0.19620215]
[1742802683932,4.81696,2076.0,2075.7,0.55]
[1742802684127,4.81696,2076.0,2075.9,0.19620215]
[1742802684311,4.81696,2076.0,2075.7,0.55]
[1742802684517,4.81696,2076.0,2075.9,0.19620215]
[1742802684719,4.81696,2076.0,2075.7,0.55]
[1742802684911,4.81696,2076.0,2075.9,0.19620215]
[1742802685110,4.81696,2076.0,2075.7,0.55]
[1742802685639,4.81696,2076.0,2075.8,0.19620215]
[1742802685838,4.81696,2076.0,2075.7,0.55]
[1742802686005,4.81696,2076.0,2075.9,0.19620215]
[1742802686210,4.81696,2076.0,2075.7,0.55]
[1742802686410,4.81696,2076.0,2075.9,0.19620215]
[1742802686610,4.81696,2076.0,2075.7,0.55]
[1742802686940,4.81696,2076.0,2075.9,0.19620215]
[1742802687418,4.81696,2076.0,2075.7,0.55]
[1742802687622,4.81696,2076.0,2075.9,0.19620215]
[1742802687841,4.81696,2076.0,2075.7,0.55]
[1742802688019,4.81696,2076.0,2075.9,0.19620215]
[1742802688219,4.81696,2076.0,2075.7,0.55]
[1742802688518,4.81696,2076.0,2075.9,0.19620215]
[1742802688705,4.81696,2076.0,2075.7,0.55]
[1742802688909,4.81696,2076.0,2075.9,0.19620215]
[1742802689137,4.81696,2076.0,2075.7,0.55]
[1742802689340,4.81696,2076.0,2075.9,0.19620215]
[1742802689542,4.81696,2076.0,2075.7,0.55]
[1742802689718,4.81696,2076.0,2075.9,0.19620215]
[1742802689920,4.81696,2076.0,2075.7,0.55]
[1742802690142,4.81696,2076.0,2075.9,0.19620215]
[1742802690438,4.81696,2076.0,2075.7,0.55]
[1742802690636,4.81735,2075.9,2075.7,0.55]
[1742802691437,4.81735,2075.9,2075.8,0.19788484]
[1742802691621,4.81735,2075.9,2075.7,0.55]
[1742802692045,4.81735,2075.9,2075.8,0.19788484]
[1742802692448,4.81735,2075.9,2075.7,0.55]
[1742802692747,4.81735,2075.9,2075.8,0.19788484]
[1742802693116,4.81735,2075.9,2075.7,0.55]
[1742802693446,4.81735,2075.9,2075.8,0.19788484]
[1742802693946,4.81735,2075.9,2075.7,0.55]
[1742802694150,4.81696,2076.0,2075.8,0.19755763]
[1742802694449,9.63411,2076.0,2075.7,0.55]
[1742802694815,9.63411,2076.0,2075.8,0.19797833]
[1742802695319,4.81726,2075.9,2075.7,0.55]
[1742802699035,4.81726,2075.9,2075.4,0.98370938]
[1742802699036,5.61936,2075.8,2075.4,5.80194938]
[1742802699237,4.81808,2075.6,2075.3,0.96766721]
[1742802699447,9.63612,2075.6,2075.3,0.96766721]
[1742802699753,9.63612,2075.6,2075.4,0.55]
[1742802700057,4.81804,2075.6,2075.4,0.55]
[1742802703723,4.81811,2075.5,2075.3,0.55]
[1742802703927,4.81793,2075.6,2075.3,0.55]
[1742802704551,4.81765,2075.7,2075.3,0.55]
[1742802704753,4.81765,2075.7,2075.3,5.36837]
[1742802705054,4.81788,2075.6,2075.3,5.36837]
[1742802705623,9.46842,2075.8,2075.4,0.8084]
[1742802706125,9.46842,2075.8,2075.4,5.62674]
[1742802706444,9.46842,2075.8,2075.5,0.19938082]
[1742802706823,14.28603,2075.8,2075.5,0.19938082]
[1742802707041,9.46842,2075.8,2075.5,0.19938082]
[1742802707456,4.81742,2075.8,2075.5,0.19938082]
[1742802707751,3.0,2075.8,2075.5,5.01733082]
[1742802708057,7.81744,2075.8,2075.5,0.19938082]
[1742802708559,7.81744,2075.8,2075.5,5.01748082]
[1742802708762,7.80256545,2075.8,2075.5,5.01748082]
[1742802709053,4.81697,2076.0,2075.6,4.81787]
[1742802709229,4.81721,2075.9,2075.6,0.55]
[1742802709426,4.81721,2075.9,2075.7,0.19919382]
[1742802710059,4.81721,2075.9,2075.6,0.55]
[1742802710354,4.81697,2076.0,2075.8,0.19919382]
[1742802710525,14.28512,2076.0,2075.6,5.36786]
[1742802710728,14.28512,2076.0,2075.9,0.19919382]
[1742802710959,9.46797,2076.0,2075.7,0.8084]
[1742802711128,9.46797,2076.0,2075.9,0.19919382]
[1742802711327,4.81722,2075.9,2075.7,0.8084]
[1742802711666,9.46797,2076.0,2075.7,1.54835698]
[1742802711830,14.28505,2076.0,2075.7,1.54835698]
[1742802712030,14.28504,2076.0,2075.7,1.54835698]
[1742802712557,14.28503,2076.0,2075.7,1.54835698]
[1742802712852,4.81722,2075.9,2075.7,1.54835698]
[1742802713026,4.81722,2075.9,2075.6,0.55]
[1742802713228,4.81751,2075.8,2075.6,0.55]
[1742802713956,5.58451,2075.9,2075.6,0.55]
[1742802714754,4.81807,2075.6,2075.0,5.57346]
[1742802714943,4.81775,2075.7,2075.2,9.63736]
[1742802715155,4.81795,2075.6,2075.3,0.7542]
[1742802715451,9.46895,2075.6,2075.3,0.7542]
[1742802716259,9.46895,2075.6,2075.4,0.55]
[1742802718437,9.46895,2075.6,2075.3,0.7542]
[1742802718647,4.651,2075.6,2075.4,4.81826]
[1742802718957,4.651,2075.6,2075.4,5.36834]
[1742802721469,4.651,2075.6,2075.5,0.73240929]
[1742802723581,4.81742,2075.8,2075.5,0.73240929]
[1742802725478,9.63502,2075.8,2075.5,0.73240929]
[1742802725780,4.81742,2075.8,2075.5,0.73240929]
[1742802726154,4.81771,2075.7,2075.5,0.73240929]
[1742802726568,4.81748,2075.8,2075.5,0.73240929]
[1742802726756,4.81768,2075.7,2075.5,0.73240929]
[1742802726942,4.81748,2075.8,2075.5,0.73240929]
[1742802727143,4.81788,2075.6,2075.5,0.18240929]
[1742802727556,4.81819,2075.5,2075.2,4.81879]
[1742802729340,0.7638,2075.7,2075.4,4.81822]
[1742802729678,5.5815,2075.7,2075.3,5.36851]
[1742802729883,4.81803,2075.6,2075.3,0.55]
[1742802730400,4.81824,2075.5,2075.2,0.55]
[1742802730553,9.63653,2075.5,2075.2,0.55]
[1742802730879,4.81844,2075.4,2075.1,0.55]
[1742802731077,4.81844,2075.4,2075.1,1.74316921]
[1742802731438,4.81844,2075.4,2075.1,6.56219921]
[1742802731655,4.81844,2075.4,2075.1,0.55]
[1742802731856,10.23304,2075.5,2075.1,5.36898]
[1742802732358,4.81836,2075.4,2075.1,5.36898]
[1742802733791,10.23296,2075.5,2075.1,5.36898]
[1742802734791,4.651,2075.5,2075.1,0.55]
[1742802734990,4.651,2075.5,2075.2,5.6147]
[1742802736072,4.651,2075.5,2075.2,6.80779921]
[1742802736490,4.651,2075.5,2075.3,0.18371607]
[1742802736983,4.651,2075.5,2075.2,6.80779921]
[1742802737161,4.651,2075.5,2075.4,0.18371607]
[1742802737361,4.651,2075.5,2075.2,10.43335]
[1742802737590,4.651,2075.5,2075.4,0.18371607]
[1742802737787,4.651,2075.5,2075.2,10.43335]
[1742802737990,4.651,2075.5,2075.4,0.18371607]
[1742802738294,4.651,2075.5,2075.1,5.36904]
[1742802738295,0.7638,2075.4,2075.1,5.36904]
[1742802738887,5.58217,2075.4,2075.1,5.36904]
[1742802739095,5.58217,2075.4,2075.0,5.36924]
[1742802739393,5.58217,2075.4,2075.0,6.467706]
[1742802739762,5.58217,2075.4,2075.0,6.467606]
[1742802740791,0.7638,2075.4,2075.1,4.81904]
[1742802741092,9.46917,2075.5,2075.1,9.63793]
[1742802741290,9.46917,2075.5,2075.1,10.94412172]
[1742802742095,9.46917,2075.5,2075.1,6.12508172]
[1742802742296,9.46917,2075.5,2075.1,10.94401172]
[1742802743095,9.46917,2075.5,2075.1,6.12508172]
[1742802743663,4.81835,2075.4,2075.1,6.12508172]
[1742802744197,9.46914,2075.5,2075.1,6.12508172]
[1742802745411,0.7968,2075.4,2074.6,0.7852]
[1742802745590,0.7968,2075.1,2074.8,4.81971]
[1742802745788,0.7968,2075.1,2074.8,4.81964]
[1742802746094,0.7968,2075.1,2074.8,5.380124]
[1742802746897,5.61587,2075.1,2074.8,5.380124]
[1742802747399,5.61587,2075.1,2074.7,5.36979]
[1742802747693,5.61587,2075.1,2074.7,10.18958]
[1742802748086,0.7968,2075.1,2074.8,4.81963]
[1742802748290,5.61619,2075.0,2074.5,4.82022]
[1742802748484,5.61619,2075.0,2074.6,5.37008]
[1742802748687,5.61619,2075.0,2074.6,10.19011]
[1742802749267,5.61619,2075.0,2074.6,6.15519]
[1742802749466,5.61619,2075.0,2074.6,5.36999]
[1742802749670,5.61617,2075.0,2074.6,5.36999]
[1742802749869,5.66454298,2075.0,2074.6,0.55]
[1742802750092,10.48400298,2075.0,2074.6,5.37018]
[1742802750280,10.43563,2075.0,2074.6,5.37018]
[1742802750693,5.61617,2075.0,2074.6,5.37018]
[1742802750873,5.66454298,2075.0,2074.6,5.37018]
[1742802751404,5.61617,2075.0,2074.6,5.37018]
[1742802751707,5.61617,2075.0,2074.7,0.1882912]
[1742802752003,10.48396298,2075.0,2074.7,0.1882912]
[1742802752202,5.61617,2075.0,2074.7,0.1882912]
[1742802752382,5.66454298,2075.0,2074.7,0.1882912]
[1742802753405,5.61617,2075.0,2074.7,0.1882912]
[1742802753900,5.61654,2074.8,2074.7,0.1882912]
[1742802754274,10.4365,2074.8,2074.4,0.55]
[1742802754504,4.651,2074.7,2074.4,0.55]
[1742802754724,4.651,2074.7,2074.5,0.1884313]
[1742802754872,9.47097,2074.7,2074.5,0.1884313]
[1742802755077,9.471,2074.7,2074.5,0.1884313]
[1742802761206,4.651,2074.8,2074.7,4.81995]
[1742802761388,4.651,2074.8,2074.6,4.81997]
[1742802761586,4.651,2074.8,2074.7,0.19085978]
[1742802761782,7.81888,2075.2,2074.8,5.36971]
[1742802761987,4.81888,2075.2,2074.8,5.36971]
[1742802762188,9.6379,2075.2,2074.8,5.36971]
[1742802762384,9.6379,2075.2,2074.9,0.19085978]
[1742802763001,5.64597,2075.1,2074.9,0.19085978]